bitfinex-derivatives/quotes_ETHF0:USTF0_20210703
["timestamp","ask_amount","ask_price","bid_price","bid_amount"]
[1625302130289,1.33517364,2190.5,2189.8,55.7742]
[1625302130580,1.33517364,2190.5,2189.8,60.7742]
[1625302130984,1.0,2191.3,2190.4,4.41054]
[1625302131080,1.87279873,2191.6,2190.4,8.16304]
[1625302131233,4.07675483,2192.0,2191.0,47.6404]
[1625302131331,4.07675483,2192.0,2191.0,50.1129]
[1625302131637,2.20527,2192.0,2191.0,50.1129]
[1625302131833,2.20527,2192.0,2191.0,2.4725]
[1625302132339,4.07641445,2192.0,2191.0,2.4725]
[1625302132435,39.3037,2191.6,2190.4,4.41054]
[1625302132537,4.07641445,2192.0,2190.4,4.41054]
[1625302132987,4.07641445,2192.0,2191.5,2.20527]
[1625302133137,2.20527,2192.0,2191.5,2.20527]
[1625302133939,45.1665,2191.9,2191.5,2.20527]
[1625302134991,2.20527,2191.6,2191.5,2.20527]
[1625302138517,2.20527,2191.6,2190.0,1.0]
[1625302138668,2.20527,2191.6,2189.1,1.0]
[1625302139018,0.905,2191.8,2190.6,2.20527]
[1625302139019,2.20527,2190.7,2190.6,2.20527]
[1625302140725,2.20527,2190.7,2190.4,2.20527]
[1625302141073,2.20527,2190.5,2190.4,2.20527]
[1625302141574,2.20527,2190.5,2189.1,53.5697]
[1625302141674,2.20527,2190.5,2188.8,14.6493]
[1625302143028,2.20527,2190.0,2189.9,2.20527]
[1625302146036,5.13097,2190.0,2189.9,2.20527]
[1625302148740,2.9257,2190.0,2189.9,2.20527]
[1625302148894,3.702,2190.7,2189.9,2.20527]
[1625302148991,15.608,2191.1,2189.9,2.20527]
[1625302149090,2.20527,2190.4,2190.3,2.20527]
[1625302151143,4.41054,2190.4,2190.3,2.20527]
[1625302151956,3.2749,2190.8,2190.3,2.20527]
[1625302152699,1.0,2191.5,2190.3,2.20527]
[1625302152800,15.4414,2191.8,2190.3,2.20527]
[1625302152907,1.86913289,2192.0,2190.3,2.20527]
[1625302153060,1.86913289,2192.0,2190.3,7.20527]
[1625302153165,2.20527,2191.8,2191.6,4.98647]
[1625302155626,1.87121986,2192.7,2191.7,43.8556]
[1625302155922,1.86933366,2193.2,2191.7,43.8556]
[1625302156171,1.86933366,2193.2,2191.6,4.98647]
[1625302156575,1.86933366,2193.2,2191.6,9.98647]
[1625302156775,18.14720573,2193.4,2191.6,9.98647]
[1625302156875,17.14720573,2193.4,2192.1,43.9972]
[1625302156974,17.14720573,2193.4,2192.1,47.0202]
[1625302157175,2.20527,2193.2,2193.1,2.20527]
[1625302157642,2.20527,2193.2,2193.1,1.12418774]
[1625302159194,4.41054,2193.2,2192.8,2.20527]
[1625302159494,4.41054,2193.2,2192.6,2.20527]
[1625302161150,2.20527,2192.8,2192.6,4.41054]
[1625302161911,43.96397,2192.8,2192.6,4.41054]
[1625302162216,2.20527,2192.8,2192.6,4.41054]
[1625302163220,4.41054,2192.8,2192.6,4.41054]
[1625302166531,4.41054,2192.8,2191.8,45.8691]
[1625302167280,4.41054,2192.8,2192.5,2.20527]
[1625302167381,6.86494,2192.8,2192.3,2.20527]
[1625302167931,6.86494,2192.8,2191.3,15.7037]
[1625302168231,7.86494,2192.8,2190.9,59.7217]
[1625302168781,7.86494,2192.8,2190.9,5.0]
[1625302169031,7.86494,2192.8,2190.6,0.9147]
[1625302169131,7.86494,2192.8,2190.4,5.0]
[1625302169281,4.85637,2192.1,2191.9,2.20527]
[1625302171240,2.20527,2192.0,2191.9,2.20527]
[1625302171340,2.20527,2192.0,2191.6,2.20527]
[1625302173268,14.4885,2193.1,2191.9,2.20527]
[1625302173420,14.4885,2193.1,2191.9,5.68677]
[1625302174620,1.0,2193.6,2191.9,5.68677]
[1625302174720,14.858,2193.7,2191.9,10.68677]
[1625302175171,14.858,2193.7,2192.9,2.20527]
[1625302175271,2.20527,2193.1,2192.9,2.20527]
[1625302175479,2.20527,2193.1,2193.0,55.6019]
[1625302175575,2.20527,2193.1,2192.9,2.20527]
[1625302177229,4.41054,2193.1,2192.9,2.20527]
[1625302186048,4.41054,2193.1,2191.3,14.9312]
[1625302186147,55.9111,2193.0,2191.3,14.9312]
[1625302186800,55.9111,2193.0,2191.4,16.694392]
[1625302187099,55.9111,2193.0,2191.5,5.0]
[1625302187252,2.20527,2192.5,2192.4,2.20527]
[1625302188657,1.0,2193.8,2192.4,2.20527]
[1625302188756,14.2163,2194.5,2192.4,10.52137]
[1625302189005,1.0,2194.4,2192.4,10.52137]
[1625302189255,1.0,2194.4,2193.7,2.20527]
[1625302189361,2.20527,2193.8,2193.7,5.89567]
[1625302191112,14.2163,2194.5,2193.7,5.89567]
[1625302191320,2.20527,2194.3,2194.2,2.20527]
[1625302212253,4.53637,2194.3,2194.2,2.20527]
[1625302212454,4.53637,2194.3,2193.7,2.20527]
[1625302212907,46.6096,2193.8,2193.7,2.20527]
[1625302213010,49.6509,2193.8,2193.7,2.20527]
[1625302213208,49.6509,2193.8,2192.5,15.6907]
[1625302213458,2.20527,2193.7,2193.6,2.20527]
[1625302214307,2.20527,2193.7,2193.4,2.20527]
[1625302215410,2.20527,2193.5,2193.4,2.20527]
[1625302215711,2.20527,2193.5,2192.9,2.20527]
[1625302217466,2.20527,2193.5,2193.4,2.20527]
[1625302225247,2.20527,2193.7,2193.4,2.20527]
[1625302225550,2.20527,2193.7,2193.5,2.20527]
[1625302227555,2.20527,2193.6,2193.5,2.20527]
[1625302228502,2.20527,2193.6,2193.4,2.20527]
[1625302229508,2.20527,2193.6,2193.5,2.20527]
[1625302253288,2.20527,2193.6,2193.5,5.20547]
[1625302255193,2.20527,2193.6,2193.5,3.0002]
[1625302255293,4.50347,2193.6,2193.1,2.20527]
[1625302255393,4.50347,2193.6,2192.3,15.5809]
[1625302255493,4.50347,2193.6,2192.3,14.5809]
[1625302255696,2.20527,2193.1,2192.9,2.20527]
[1625302256350,1.87916137,2194.0,2192.9,2.20527]
[1625302256556,1.87916137,2194.0,2192.9,7.20527]
[1625302256708,6.63803357,2194.1,2192.9,7.20527]
[1625302256853,1.87903357,2194.1,2192.9,7.20527]
[1625302257004,1.87876581,2194.6,2192.9,2.20527]
[1625302257507,1.87876581,2194.6,2192.9,7.20527]
[1625302257711,2.20527,2194.1,2194.0,2.20527]
[1625302257804,2.20527,2194.1,2194.0,5.49897]
[1625302261958,2.20527,2194.1,2193.7,2.20527]
[1625302263723,2.20527,2193.8,2193.7,2.20527]
[1625302270857,2.20527,2193.8,2192.7,1.86760286]
[1625302271606,2.20527,2193.8,2192.8,48.4662]
[1625302271706,2.20527,2193.8,2192.8,50.8001]
[1625302271858,2.20527,2193.8,2193.3,5.25427]
[1625302273810,2.20527,2193.8,2193.7,2.20527]
[1625302274511,2.20527,2193.8,2193.3,5.25427]
[1625302275765,2.20527,2193.4,2193.3,5.25427]
[1625302280823,1.88542762,2193.7,2193.3,5.25427]
[1625302280922,48.44,2193.6,2193.3,5.25427]
[1625302281823,2.20527,2193.5,2193.3,5.25427]
[1625302285408,2.20527,2193.8,2193.3,5.25427]
[1625302285509,1.88514378,2194.1,2193.3,5.25427]
[1625302285607,1.88514378,2194.1,2193.4,5.0]
[1625302285916,1.88499906,2194.4,2194.0,4.41054]
[1625302286017,1.88499906,2194.4,2194.0,8.06584]
[1625302286117,1.88499906,2194.4,2194.3,46.118]
[1625302286419,1.88499906,2194.4,2194.0,8.06584]
[1625302286721,1.88424885,2194.5,2194.0,8.06584]
[1625302287885,4.89705408,2194.6,2194.4,2.20527]
[1625302288186,2.69176025,2194.5,2194.4,2.20527]
[1625302288634,4.89700887,2194.6,2194.4,2.20527]
[1625302288736,1.88421721,2194.5,2194.4,2.20527]
[1625302290747,4.89700887,2194.6,2194.4,2.20527]
[1625302290748,4.08840882,2194.6,2194.4,2.20527]
[1625302291998,4.08843556,2194.5,2194.4,2.20527]
[1625302294257,2.20527,2194.5,2194.4,2.20527]
[1625302296311,4.08765675,2194.5,2194.4,2.20527]
[1625302296561,2.20527,2194.5,2194.4,2.20527]
[1625302297416,2.20527,2194.5,2194.4,4.70717]
[1625302299724,1.8816512,2194.7,2194.4,4.70717]
[1625302300028,2.20527,2194.6,2194.5,2.20527]
[1625302301983,47.23947,2194.6,2194.5,2.20527]
[1625302302485,47.23947,2194.6,2193.2,17.08300029]
[1625302302744,47.23947,2194.6,2193.2,15.2217]
[1625302303243,1.88156162,2194.3,2193.2,15.2217]
[1625302303543,1.88156162,2194.3,2192.9,1.86253478]
[1625302303995,2.20527,2194.1,2194.0,2.20527]
[1625302305999,4.41054,2194.1,2194.0,2.20527]
[1625302307402,1.88159283,2194.5,2194.0,2.20527]
[1625302307759,1.88185378,2194.4,2194.0,2.20527]
[1625302308063,2.20527,2194.1,2194.0,2.20527]
[1625302326731,4.94437,2194.1,2194.0,2.20527]
[1625302328742,2.7391,2194.1,2194.0,2.20527]
[1625302328843,1.8820028,2194.7,2194.0,2.20527]
[1625302328993,17.28461158,2194.8,2194.0,2.20527]
[1625302329645,17.28461158,2194.8,2194.0,5.15667]
[1625302330152,17.28461158,2194.8,2194.7,2.20527]
[1625302330253,15.4025,2194.8,2194.7,2.20527]
[1625302330504,2.20527,2194.9,2194.7,2.20527]
[1625302331207,1.88174365,2195.1,2194.7,2.20527]
[1625302331611,3.49466678,2195.4,2194.7,2.20527]
[1625302331612,1.88139056,2195.3,2194.7,2.20527]
[1625302332060,1.8811438,2195.5,2194.7,2.20527]
[1625302332161,1.8811438,2195.5,2195.3,4.41054]
[1625302332260,1.8811438,2195.5,2195.3,7.01784]
[1625302332665,4.08639134,2195.6,2195.3,7.01784]
[1625302333417,2.20527,2195.6,2195.3,7.01784]
[1625302334015,4.08531503,2195.8,2195.3,7.01784]
[1625302334215,4.08531503,2195.8,2195.7,2.20527]
[1625302334317,2.20527,2195.8,2195.7,2.20527]
[1625302334968,54.49537,2195.8,2195.7,2.20527]
[1625302337983,54.49537,2195.8,2195.3,4.81257]
[1625302338137,54.49537,2195.8,2195.3,2.20527]
[1625302338284,2.20527,2195.4,2195.3,2.20527]
[1625302358926,2.20527,2195.4,2194.1,14.3606]
[1625302360328,2.20527,2195.4,2195.0,2.20527]
[1625302362380,2.20527,2195.1,2195.0,2.20527]
[1625302362983,51.78517,2195.1,2195.0,2.20527]
[1625302363081,2.20527,2195.1,2195.0,2.20527]
[1625302376424,58.03117,2195.1,2195.0,2.20527]
[1625302376625,2.20527,2195.1,2195.0,2.20527]
[1625302384762,2.20527,2195.1,2195.0,4.53197]
[1625302386116,2.20527,2195.4,2195.0,4.53197]
[1625302386516,2.20527,2195.4,2195.3,2.20527]
[1625302386869,1.34131891,2195.7,2195.3,2.20527]
[1625302386970,1.34131891,2195.7,2195.3,5.31737]
[1625302387168,1.34109766,2196.2,2195.3,5.31737]
[1625302387488,1.34109766,2196.2,2195.8,45.0867]
[1625302387577,1.34109766,2196.2,2195.8,48.7368]
[1625302387980,1.34108466,2196.3,2195.8,3.6501]
[1625302388480,3.54635466,2196.3,2196.2,2.20527]
[1625302389032,2.20527,2196.3,2196.2,2.20527]
[1625302389333,3.54615342,2196.3,2196.2,2.20527]
[1625302390187,43.03205342,2196.3,2196.2,2.20527]
[1625302390485,45.23732342,2196.3,2196.2,2.20527]
[1625302391639,5.75142342,2196.3,2196.2,2.20527]
[1625302392192,4.41054,2196.3,2196.2,2.20527]
[1625302392846,5.75136434,2196.3,2196.2,2.20527]
[1625302393042,1.34082434,2196.3,2196.2,2.20527]
[1625302393144,2.6815017,2196.6,2196.2,2.20527]
[1625302393344,1.34080894,2196.5,2196.2,2.20527]
[1625302393544,1.34080894,2196.5,2196.4,52.8846]
[1625302393694,1.34080894,2196.5,2196.2,2.20527]
[1625302393995,1.87645848,2197.7,2196.2,2.20527]
[1625302394345,1.87639036,2197.6,2196.2,2.20527]
[1625302394546,2.20527,2197.5,2197.4,2.20527]
[1625302396514,4.41054,2197.5,2197.4,2.20527]
[1625302399881,57.72244,2197.5,2197.4,2.20527]
[1625302400080,61.19014,2197.5,2197.4,2.20527]
[1625302405095,61.19014,2197.5,2197.1,2.20527]
[1625302405700,61.19014,2197.5,2195.7,1.0]
[1625302405798,1.0,2197.4,2194.8,1.84212894]
[1625302405897,1.0,2197.4,2194.9,1.0]
[1625302406150,1.0,2197.4,2195.3,1.0]
[1625302406598,2.20527,2196.6,2196.5,2.20527]
[1625302408510,56.66337,2196.6,2196.5,2.20527]
[1625302408600,58.86864,2196.6,2196.5,2.20527]
[1625302409154,62.53154,2196.6,2196.5,2.20527]
[1625302412272,8.07344,2196.6,2195.4,1.0]
[1625302412425,2.20527,2196.6,2194.8,1.0]
[1625302412522,1.0,2197.4,2195.6,3.5928]
[1625302412623,3.20527,2197.2,2197.0,2.20527]
[1625302412722,2.20527,2197.2,2197.0,2.20527]
[1625302413678,46.8576,2197.1,2197.0,2.20527]
[1625302414741,46.8576,2197.1,2195.7,14.8841]
[1625302416603,46.8576,2197.1,2196.7,2.20527]
[1625302418603,2.20527,2196.8,2196.7,2.20527]
[1625302419409,5.87717,2196.8,2196.7,2.20527]
[1625302419558,5.87717,2196.8,2196.4,2.20527]
[1625302420618,2.20527,2196.5,2196.4,2.20527]
[1625302423450,1.0,2197.4,2196.4,2.20527]
[1625302423547,4.759,2197.5,2196.4,2.20527]
[1625302424498,50.9388,2197.4,2196.4,2.20527]
[1625302424699,2.20527,2196.5,2196.4,4.41054]
[1625302426803,50.78097,2196.5,2196.4,4.41054]
[1625302426904,2.20527,2196.5,2196.4,4.41054]
[1625302427108,2.20527,2196.5,2196.4,2.20527]
[1625302428371,50.47997,2196.5,2196.4,2.20527]
[1625302428469,50.47997,2196.5,2195.4,1.0]
[1625302428571,50.47997,2196.5,2194.7,2.84231881]
[1625302428670,1.0,2196.4,2194.7,17.36401881]
[1625302428780,2.20527,2195.8,2195.7,2.20527]
[1625302429480,5.61247,2195.8,2194.7,15.5217]
[1625302429637,6.51747,2195.8,2194.7,15.5217]
[1625302429785,6.51747,2195.8,2194.3,1.84379435]
[1625302429881,7.51747,2195.8,2194.3,1.84379435]
[1625302430334,39.0219,2194.8,2194.3,1.84379435]
[1625302430436,41.8809,2194.8,2193.9,1.84619915]
[1625302430734,41.8809,2194.8,2194.7,4.41054]
[1625302431988,2.20527,2195.0,2194.7,4.41054]
[1625302434843,2.20527,2194.8,2194.7,4.41054]
[1625302436096,2.20527,2195.0,2194.7,4.41054]
[1625302436804,2.20527,2194.8,2194.7,4.41054]
[1625302448567,2.20527,2194.8,2193.6,1.84842057]
[1625302448864,2.20527,2194.8,2194.4,2.20527]
[1625302450368,44.4033,2194.5,2194.4,2.20527]
[1625302450918,46.60857,2194.5,2194.4,2.20527]
[1625302454933,2.20527,2194.5,2194.4,2.20527]
[1625302455842,52.38017,2194.5,2194.4,2.20527]
[1625302459208,2.20527,2194.5,2194.4,2.20527]
[1625302462971,2.20527,2194.8,2194.4,2.20527]
[1625302464925,59.23987,2194.8,2194.4,2.20527]
[1625302465028,2.20527,2194.5,2194.4,2.20527]
[1625302468493,14.5274,2195.4,2194.4,5.02047]
[1625302469044,2.20527,2194.9,2194.7,2.20527]
[1625302470350,14.5274,2195.4,2194.7,2.20527]
[1625302470447,14.5274,2195.4,2194.7,5.33687]
[1625302470697,5.759,2196.0,2194.7,5.33687]
[1625302470798,4.759,2196.0,2194.7,5.33687]
[1625302471051,2.20527,2195.3,2195.2,2.20527]
[1625302471450,2.20527,2195.3,2194.7,5.33687]
[1625302473162,4.41054,2195.3,2195.2,2.20527]
[1625302474216,4.41054,2195.3,2195.2,3.11007]
[1625302474565,4.41054,2195.3,2195.2,2.20527]
[1625302475420,4.41054,2195.3,2195.2,5.22217]
[1625302477071,4.41054,2195.3,2195.2,2.20527]
[1625302477926,4.41054,2195.3,2194.7,2.20527]
[1625302479126,2.20527,2195.3,2195.1,2.20527]
[1625302479579,2.20527,2195.3,2195.1,5.24097]
[1625302481134,2.20527,2195.3,2195.2,2.20527]
[1625302482141,2.20527,2195.6,2195.2,2.20527]
[1625302483251,2.20527,2195.6,2195.5,2.20527]
[1625302485959,41.82127,2195.6,2195.5,2.20527]
[1625302486368,2.20527,2195.6,2195.5,2.20527]
[1625302490172,1.0,2196.4,2195.5,2.20527]
[1625302490323,3.0758,2197.0,2195.5,2.20527]
[1625302490423,1.87415846,2197.1,2195.5,2.20527]
[1625302490675,14.7691,2197.3,2195.5,2.20527]
[1625302491180,14.7691,2197.3,2195.6,5.0]
[1625302491279,14.7691,2197.3,2197.2,4.41054]
[1625302494549,2.20527,2197.5,2197.2,4.41054]
[1625302501926,45.5182,2197.3,2197.2,4.41054]
[1625302502374,49.0478,2197.3,2197.2,4.41054]
[1625302502626,49.0478,2197.3,2196.1,1.0]
[1625302502724,49.0478,2197.3,2195.6,1.84577576]
[1625302502825,1.0,2197.2,2195.6,1.84577576]
[1625302503126,1.0,2197.2,2195.5,14.8652]
[1625302503329,1.0,2197.2,2197.0,2.20527]
[1625302503428,49.0478,2197.3,2197.0,2.20527]
[1625302505332,2.20527,2197.1,2197.0,2.20527]
[1625302508839,3.12507,2197.1,2197.0,2.20527]
[1625302509593,2.20527,2197.1,2197.0,2.20527]
[1625302510665,3.12287,2197.1,2197.0,2.20527]
[1625302521395,2.20527,2197.1,2197.0,2.20527]
[1625302522797,2.20527,2197.1,2197.0,4.64957]
[1625302523005,2.20527,2197.5,2197.0,4.64957]
[1625302523096,15.5332,2197.6,2197.0,4.64957]
[1625302523349,55.4939,2198.2,2197.0,4.64957]
[1625302523496,2.20527,2198.1,2197.9,2.20527]
[1625302524100,2.20527,2198.1,2197.7,2.20527]
[1625302525502,2.20527,2197.8,2197.7,2.20527]
[1625302529081,2.20527,2197.8,2197.4,2.20527]
[1625302529482,2.20527,2197.5,2197.4,2.20527]
[1625302530586,2.20527,2197.5,2197.2,2.20527]
[1625302531485,2.20527,2197.3,2197.2,2.20527]
[1625302532338,56.91457,2197.3,2197.2,2.20527]
[1625302532437,59.92297,2197.3,2197.2,2.20527]
[1625302534248,59.92297,2197.3,2196.8,2.20527]
[1625302534346,59.92297,2197.3,2195.9,1.0]
[1625302534445,59.92297,2197.3,2195.5,14.8652]
[1625302534446,59.92297,2197.3,2195.5,15.8652]
[1625302534545,1.0,2197.2,2195.5,14.8652]
[1625302534997,45.9174,2196.0,2195.5,14.8652]
[1625302535298,45.9174,2196.0,2194.6,5.0]
[1625302535499,45.9174,2196.0,2195.9,4.41054]
[1625302537420,2.20527,2196.3,2195.9,4.41054]
[1625302538172,48.27397,2196.3,2195.9,4.41054]
[1625302539530,48.27397,2196.3,2196.2,2.20527]
[1625302540029,49.18097,2196.3,2196.2,2.20527]
[1625302540528,48.27397,2196.3,2196.2,2.20527]
[1625302544737,48.27397,2196.3,2195.9,2.20527]
[1625302545538,2.20527,2196.0,2195.9,2.20527]
[1625302547094,48.27397,2196.3,2195.9,2.20527]
[1625302547193,48.27397,2196.3,2195.9,5.00017]
[1625302549551,2.20527,2196.0,2195.9,5.00017]
[1625302559939,2.20527,2196.3,2195.9,5.00017]
[1625302561644,2.20527,2196.0,2195.9,7.20544]
[1625302565122,2.20527,2196.0,2194.9,1.0]
[1625302565218,2.20527,2196.0,2194.5,2.6341]
[1625302565317,1.0,2195.9,2194.4,1.8493252]
[1625302565673,2.20527,2195.0,2194.8,2.20527]
[1625302566073,43.3225,2194.9,2194.8,2.20527]
[1625302566424,44.3225,2194.9,2194.6,2.20527]
[1625302567227,44.3225,2194.9,2193.9,1.85548499]
[1625302567586,44.3225,2194.9,2194.0,1.85563906]
[1625302567688,2.20527,2194.4,2194.3,2.20527]
[1625302582042,3.20527,2194.4,2194.3,2.20527]
[1625302582492,2.20527,2194.4,2194.3,2.20527]
[1625302582993,3.20527,2194.4,2194.3,2.20527]
[1625302585498,2.20527,2194.4,2194.3,2.20527]
[1625302586596,3.20527,2194.4,2194.3,2.20527]
[1625302591157,3.20527,2194.4,2194.3,4.99827]
[1625302592008,2.20527,2194.4,2194.3,4.99827]
[1625302594370,45.05127,2194.4,2194.3,4.99827]
[1625302594569,2.20527,2194.4,2194.3,4.99827]
[1625302594772,2.20527,2194.5,2194.3,4.99827]
[1625302597695,52.4916,2194.4,2194.3,4.99827]
[1625302598996,52.4916,2194.4,2194.3,5.92257]
[1625302599096,52.4916,2194.4,2194.3,4.99827]
[1625302601201,4.41054,2194.5,2194.3,4.99827]
[1625302601351,2.20527,2194.5,2194.3,4.99827]
[1625302609113,3.20527,2194.5,2194.3,4.99827]
[1625302610115,2.20527,2194.4,2194.3,4.99827]
[1625302610214,42.46337,2194.4,2194.3,4.99827]
[1625302610515,41.46337,2194.4,2194.3,4.99827]
[1625302610716,42.46337,2194.4,2194.3,4.99827]
[1625302612976,42.46337,2194.4,2194.3,2.793]
[1625302613076,42.46337,2194.4,2194.1,2.20527]
[1625302614188,2.20527,2194.2,2194.1,2.20527]
[1625302618202,3.20527,2194.2,2194.1,2.20527]
[1625302624934,3.20527,2194.2,2193.6,1.85039174]
[1625302625185,3.20527,2194.2,2193.5,1.85132303]
[1625302625891,3.20527,2194.2,2193.4,1.85174165]
[1625302626239,3.20527,2193.6,2193.5,2.20527]
[1625302626437,56.59357,2193.6,2193.5,2.20527]
[1625302626551,55.59357,2193.6,2193.5,2.20527]
[1625302627048,2.20527,2193.6,2193.5,2.20527]
[1625302628256,4.41054,2193.6,2193.5,2.20527]
[1625302631921,4.41054,2193.6,2193.5,5.58107]
[1625302632518,0.9002,2194.4,2193.5,5.58107]
[1625302632621,1.0,2194.3,2193.5,5.58107]
[1625302633272,1.0,2194.3,2194.0,49.8685]
[1625302633373,1.0,2194.3,2194.0,3.1594]
[1625302634275,1.0,2194.3,2194.2,2.20527]
[1625302636026,49.3898,2194.3,2194.2,2.20527]
[1625302636978,1.0,2194.3,2194.2,2.20527]
[1625302637129,2.20527,2194.4,2194.2,2.20527]
[1625302638639,2.20527,2194.8,2194.2,2.20527]
[1625302639141,2.20527,2194.8,2194.2,3.52632611]
[1625302640098,2.20527,2194.8,2194.2,8.52632611]
[1625302640298,2.20527,2194.8,2194.7,2.20527]
[1625302640396,2.20527,2194.8,2194.7,5.42487]
[1625302640598,41.3217,2195.3,2194.7,5.42487]
[1625302641149,42.3217,2195.3,2194.7,5.42487]
[1625302642303,2.20527,2195.2,2194.9,2.20527]
[1625302642453,3.20527,2195.2,2194.9,2.20527]
[1625302643401,2.20527,2195.2,2194.9,2.20527]
[1625302647367,3.20527,2195.2,2194.9,2.20527]
[1625302652900,3.20527,2195.2,2194.9,5.54247]
[1625302653901,2.20527,2195.2,2194.9,5.54247]
[1625302654253,2.20527,2195.2,2194.9,6.86801898]
[1625302654454,2.20527,2195.2,2195.0,2.20527]
[1625302654805,1.0,2195.5,2195.0,2.20527]
[1625302654903,52.87981304,2195.8,2195.0,2.20527]
[1625302655103,1.0,2195.7,2195.0,2.20527]
[1625302655859,1.0,2195.7,2195.0,3.53048119]
[1625302656110,1.0,2195.7,2195.0,2.20527]
[1625302656512,1.0,2195.7,2195.6,2.20527]
[1625302656620,1.0,2195.7,2195.6,5.38607]
[1625302656812,3.55018304,2195.8,2195.6,5.38607]
[1625302657212,1.34491304,2195.8,2195.6,5.38607]
[1625302657364,2.88287826,2195.9,2195.6,5.38607]
[1625302657365,1.0,2195.9,2195.6,5.38607]
[1625302658568,3.20527,2195.9,2195.8,2.20527]
[1625302660024,3.20527,2195.9,2195.1,1.32236026]
[1625302660126,6.71657,2195.9,2195.1,1.32236026]
[1625302660576,6.71657,2195.9,2195.4,2.20527]
[1625302662581,3.20527,2195.5,2195.4,2.20527]
[1625302662882,44.26917,2195.5,2195.4,2.20527]
[1625302662983,3.20527,2195.5,2195.4,2.20527]
[1625302663086,2.20527,2195.5,2195.4,2.20527]
[1625302663636,1.0,2195.9,2195.4,2.20527]
[1625302663736,1.0,2195.9,2195.4,4.74487]
[1625302664287,52.2962,2195.6,2195.4,4.74487]
[1625302664839,2.20527,2195.8,2195.4,4.74487]
[1625302666240,3.20527,2195.8,2195.4,4.74487]
[1625302666541,3.20527,2195.8,2195.7,2.20527]
[1625302681425,41.94507,2195.8,2195.7,2.20527]
[1625302681526,41.94507,2195.8,2195.4,2.20527]
[1625302681678,44.31517,2195.8,2195.4,2.20527]
[1625302682026,44.31517,2195.8,2194.7,1.32249894]
[1625302682627,2.20527,2195.1,2195.0,2.20527]
[1625302682729,5.71387,2195.1,2195.0,2.20527]
[1625302682938,5.71387,2195.1,2194.8,2.20527]
[1625302683256,53.6215,2194.9,2194.4,1.32359612]
[1625302683363,1.0,2194.8,2194.4,1.32359612]
[1625302683458,1.0,2194.8,2194.3,1.323958]
[1625302684160,1.0,2194.8,2194.1,1.32482011]
[1625302684711,2.20527,2194.5,2194.4,2.20527]
[1625302684811,3.20527,2194.5,2194.4,2.20527]
[1625302686666,4.41054,2194.5,2194.4,2.20527]
[1625302687919,5.41054,2194.5,2194.4,2.20527]
[1625302688622,1.0,2194.5,2194.4,2.20527]
[1625302690480,1.0,2194.5,2194.4,5.43727]
[1625302698962,3.20527,2194.5,2194.4,5.43727]
[1625302699413,49.03017,2194.5,2194.4,5.43727]
[1625302700963,49.03017,2194.5,2194.4,3.232]
[1625302701064,51.37537,2194.5,2194.0,1.32335018]
[1625302701519,51.37537,2194.5,2193.7,1.32384897]
[1625302702273,51.37537,2194.5,2193.6,1.3243681]
[1625302702622,51.37537,2194.5,2193.5,1.32447779]
[1625302702875,2.20527,2193.9,2193.7,2.20527]
[1625302702970,1.0,2193.8,2193.7,2.20527]
[1625302704525,49.1231,2193.8,2193.7,2.20527]
[1625302704875,1.0,2194.1,2193.7,2.20527]
[1625302704978,1.0,2194.1,2193.7,4.73477]
[1625302705077,48.03017,2194.5,2193.7,4.73477]
[1625302705182,48.03017,2194.5,2193.7,6.060814]
[1625302705979,1.0,2194.4,2193.7,6.060814]
[1625302706881,1.0,2194.4,2194.2,2.20527]
[1625302708884,2.20527,2194.3,2194.2,2.20527]
[1625302708985,1.0,2194.4,2194.2,2.20527]
[1625302709185,1.0,2194.4,2194.2,5.24227]
[1625302709785,14.6682,2195.1,2194.2,5.24227]
[1625302709786,1.0,2194.8,2194.2,5.24227]
[1625302710940,2.20527,2194.7,2194.5,2.20527]
[1625302711041,3.20527,2194.7,2194.5,2.20527]
[1625302711442,48.5295,2194.6,2194.5,2.20527]
[1625302711541,49.5295,2194.6,2194.5,2.20527]
[1625302711743,1.0,2194.6,2194.5,2.20527]
[1625302713795,2.20527,2194.7,2194.5,2.20527]
[1625302713894,3.20527,2194.7,2194.5,2.20527]
[1625302714545,55.3799,2194.6,2194.5,2.20527]
[1625302714646,56.3799,2194.6,2194.5,2.20527]
[1625302714994,2.20527,2194.7,2194.5,2.20527]
[1625302715197,2.20527,2194.7,2194.5,4.62217]
[1625302715396,14.6682,2195.1,2194.5,4.62217]
[1625302716147,15.6682,2195.1,2194.5,4.62217]
[1625302716897,15.6682,2195.1,2195.0,2.20527]
[1625302717954,64.2004,2195.1,2195.0,2.20527]
[1625302718952,68.96727,2195.1,2194.2,3.5298514]
[1625302719155,68.96727,2195.1,2194.2,2.20527]
[1625302719953,69.88777,2195.1,2194.2,2.20527]
[1625302720806,68.96727,2195.1,2194.2,2.20527]
[1625302720956,4.41054,2194.3,2194.2,2.20527]
[1625302722622,60.02844,2194.3,2194.2,2.20527]
[1625302727833,4.41054,2194.3,2194.2,2.20527]
[1625302727936,2.20527,2194.3,2194.2,2.20527]
[1625302730952,2.20527,2194.3,2194.2,5.88517]
[1625302731302,14.6682,2195.1,2194.2,5.88517]
[1625302732051,14.6682,2195.1,2194.3,5.0]
[1625302732151,14.6682,2195.1,2194.3,6.32391877]
[1625302732453,14.6682,2195.1,2194.5,1.32313097]
[1625302733052,16.87347,2195.1,2195.0,4.41054]
[1625302733153,16.87347,2195.1,2195.0,7.20614]
[1625302733403,69.13587,2195.1,2195.0,7.20614]